{"text_format":"3","workbook":"xlsx","n_sheets":3,"sheets":["Anleitung","Antrag","Holzbilanz"],"not_rendered":{"images":1,"defined_names":4},"read":"whole","date_system":"1900"}

{"sheet":"Anleitung","index":0,"n_rows":44,"n_cols":3,"rows_kept":44,"merged":[[5,0,5,8],[6,0,6,8],[7,0,7,8],[8,1,8,8],[9,1,9,8],[10,1,10,8],[11,0,11,8],[12,1,12,8],[13,1,13,8],[14,1,14,8],[15,1,15,8],[16,1,16,8],[17,2,17,8],[18,2,18,8],[19,2,19,8],[20,2,20,8],[21,1,21,8],[22,1,22,8],[23,0,23,8],[25,0,25,8],[26,0,26,8],[27,1,27,8],[28,1,28,8],[29,1,29,8],[30,0,30,8],[31,0,31,8],[33,0,33,8],[34,1,34,8],[36,0,36,8]]}
["Version 23b, ab 1.6.2023"]
["Anleitung zur Projekteingabe"]
["Objekt-Auszeichnungen mit dem Label Schweizer Holz"]
[]
[]
["Wir freuen uns, dass Sie Ihr Objekt mit dem Label Schweizer Holz auszeichnen lassen wollen und bedanken uns im Namen der Schweizer Wald- und Holzwirtschaft für Ihr Engagement zu Gunsten von Schweizer Holz."]
["Diese Objektauszeichung erfolgt gemäss der aktuellen Version \"Reglement Label Schweizer Holz\" und dessen Ausführungsbestimmungen, Kap. 6, Art. 25-28. Mitglieder aller sechs Mitgliedskategorien sowie Bauherrschaften haben die Möglichkeit, Objektauszeichnungen zu beantragen."]
["Folgendes kann ausgezeichnet werden:"]
["-","Gesamtobjekt bei einem Mindestanteil von 60% an gelabeltem Schweizer Holz. Als gesamtes Bauobjekt gilt die Gesamtheit aller Bauteile gemäss den massgebenden Baukostenplänen (BKP); die Holzmengenbasis 100% bilden alle im Gesamtobjekt verbauten Holzprodukte."]
["-","Grossbauteile: als Grossbauteil gilt das gesamte Tragwerk oder die Gesamtheit aus mindestens drei Einzelbauteilen, beispielsweise Fassade+Dachkonstruktion+Innenwand. Hier gelten die gleichen Bedingungen wie beim Gesamtobjekt."]
["-","Einzelbauteile wie Dachkonstruktion, Deckenkonstruktion, Bodenkonstruktion, Aussenwandkonstruktion, Fassaden, Innenwandkonstruktion, Module, Treppen, Fenster, Innen- und Aussentüren, Parkett und Bodenbeläge, Küchen, Möbel, Einbauschränke, übriger Innenausbau, etc.: jedes ausgezeichnete Bauteil muss zu mindestens 80% aus gelabeltem Schweizer Holz bestehen."]
["Zur Beantragung einer Objektauszeichnung sind folgende Unterlagen digital einzureichen:"]
["-","Antragsformular: ausfüllen sämtlicher Informationen im Registerblatt \"Antrag\" dieser Excel-Vorlage."]
["-","Holzbilanz gemäss Registerblatt \"Holzbilanz\" dieser Excelvorlage.\nHier sind alle verbauten Holzprodukte des auszuzeichnenden Objektes oder der/des Bauteile/s zu erfassen. Einzige Ausnahme bilden allfällig verbaute holzbasierte Dämmstoffe (Sonderregelung, um diese gegenüber anderen Dämmstoffen nicht zu benachteiligen). Tragen diese Dämmstoffe das Label Schweizer Holz, können sie fakultativ in die Bilanz eingetragen werden."]
[null,"Die Holzbilanz ist vom ausführenden Holzbauunternehmen oder vom begleitenden Holzingenieur- oder Architekturbüro auszufüllen und zu unterzeichnen."]
[null,"Wenn ähnlich schweres Holz und Holzwerkstoffe in die Bilanz einfliessen, kann die Berechnungsmethode nach Volumen-Prozent gewählt werden. In diesem Fall kann die Spalte G \"Spez. Gewicht\" in der Holzbilanz frei gelassen und ausgeblendet werden. Bei Holzbilanzen mit mehr als zwei verschiedenen  Dichten ist die Berechnungsmethode nach Gewichts-Prozenten zu wählen und Spalte G auszufüllen. Falls das spezifische Gewicht eines Baustoffes nicht bekannt ist, resp. vom Lieferanten nicht angegeben wird, kann mit den Richtwerten in der Berechnungsvorlage gerechnet werden."]
["-","Label-Nachweis: Eränzend zur Holzbilanz sind Nachweise einzureichen, die belegen, dass die in der Holzbilanz als \"gelabelt\" aufgeführten Produkte tatsächlich das Label Schweizer Holz tragen. Hierzu gelten folgende Regeln:"]
[null,"-","Als Nachweise sind Rechnungen oder Lieferscheine der Lieferanten einzureichen, auf denen die gelabelten Produkte reglementskonform deklariert sind."]
[null,"-","Ist das ausführende und für die Holzbilanz verantwortliche Holzbauunternehmen Mitglied beim Label Schweizer Holz, kann alternativ zu Rechungen/Lieferscheinen von jedem Lieferant das Formular \"Labelnachweis für Materiallieferungen zu Objektauszeichnungen\" ausgefüllt und eingereicht werden."]
[null,"-","Verfügt das für die Holzbilanz verantwortliche Holzbauunternehmen über eine gelabelte Gesamt- oder Linienproduktion (mit Jahresbilanz >80% gelabelte Produkte), sind keine Nachweise erforderlich."]
[null,"-","Nachweis-Belege müssen nummeriert sein und die Beleg-Nr. in der Holzbilanz eingetragen werden."]
["-","Pläne, Fotos und/oder Beschreibungen des auszuzeichnenden Objektes."]
["-","Bestätigung Auslandsproduktion: Fliessen gelabelte Produkte mit Zwischenproduktion im Ausland in die Holzbilanz ein, ist die schriftliche Freigabe der Geschäftsstelle Marketing Schweizer Holz dieser Produkte beizulegen. "]
["Als \"gelabeltes Schweizer Holz\" gelten Schnittholz, Leimholz, Hobelware und andere Halbfabrikate sowie Holzwerkstoffe und andere Produkte, die von den Lieferanten reglementskonform auf Rechnungen und Lieferscheinen als solche deklariert worden sind. Die geforderten Prozent-Werte sind mit \"gelabeltem Schweizer Holz\" zu erreichen, eine einfache Herkunftsaussage \"Schweizer Holz\" ist nicht ausreichend."]
[]
["Sämtliche Dokumente sind digital per Mail an die Geschäftsstelle Marketing Schweizer Holz zu senden, die Holzbilanz zusätzlich im Excel-Format. Formulare mit Unterschrift bitte einscannen."]
["Sobald die Freigabe durch die Geschäftsstelle Marketing Schweizer Holz vorliegt, darf das ausgezeichnete Objekt mit dem Label Schweizer Holz in Zusammenhang gebracht werden. Folgende Auszeichnungsartikel und -dienstleistungen sind erhältlich:"]
["-","Zertifikat (Print oder als PDF) mit folgenden Angaben: Objektbezeichnung, Standort,  Auszeichnungsbereich (Gesamtobjekt oder Auflistung der ausgezeichneten Bauteile), verbautes gelabeltes Schweizer Holz in Kubikmeter."]
["-","Plexiglas-Plakette mit Hinweis auf die Objektauszeichnung."]
["-","Eintrag www.holz-objekte.org: Der Eintrag in der Objektdartenbank erfolgt durch den Antragsteller, es gibt eine Rubrik für Schweizer Holz Objekte. (CHF 50.-- exkl. MWST, Inkasso via Geschäftsstelle MSH)"]
["Bei grösseren Objekten (Überbauungen, Hotels/Restaurants, Verwaltungen etc.), öffentlichen Gebäuden (Turnhallen, Schulhäuser, Kindergärten, etc.) und Objekten mit medialem Interesse (Aussichtstürme, Bahnstationen, etc.) ist die Zusammenarbeit mit der Geschäftsstelle der Marken- und Labelinhaberin und der jeweiligen Regionalen Arbeitsgemeinschaft der Lignum erwünscht. Im Rahmen eines geeigneten Anlasses (z.B. Einweihung oder Eröffnung) wird die Auszeichnung im Namen eines Verbandes, der Lignum oder der jeweiligen Regionalen Arbeitsgemeinschaft an die Bauherrschaft übergeben."]
["Es dürfen ausschliesslich Label-Mitglieder das Label Schweizer Holz für die eigene Kommunikation einsetzen (Reglement Art. 24). Dies gilt auch für Objektauszeichnungen. Private und öffentliche Bauherrschaften dürfen jedoch in ihrer Kommunikation auf die Objektauszeichnung hinweisen."]
[]
["Gebühren:"]
[null,"Objektauszeichnungen sind für Label-Mitglieder kostenlos (inkl. Zertifikat und Plakette); Porto und Verpackung werden verrechnet. Für antragstellende Bauherrschaften, die nicht Label-Mitglied sind, beträgt die Pauschale für den zusätzlichen Kontrollaufwand CHF 600.--."]
[]
["Weitere Dokumente, aktuelle Formulare sowie das Reglement Label Schweizer Holz inkl. der aktuellen Ausführungsbestimmungen finden Sie im Downloadbereich unter: www.holz-bois-legno.ch."]
["Bei weiteren Fragen steht Ihnen das Team von Marketing Schweizer Holz gerne zur Verfügung:"]
[null,"Marketing Schweizer Holz"]
[null,"c/o LIGNUM Holzwirtschaft Schweiz"]
[null,"Mühlebachstrasse 8"]
[null,"8008 Zürich"]
[null,"Mail: info@holz-bois-legno.ch"]
[null,"Telefon: 044 267 47 77"]

{"sheet":"Antrag","index":1,"n_rows":76,"n_cols":4,"rows_kept":76,"merged":[[3,1,3,2],[3,3,3,4],[4,1,4,2],[5,1,5,2],[6,1,6,2],[7,1,7,2],[11,1,11,2],[12,1,12,2],[13,1,13,2],[14,1,14,2],[15,1,15,2],[17,1,17,4],[18,1,18,4],[19,1,19,4],[22,1,22,2],[23,1,23,2],[24,1,24,2],[25,1,25,2],[26,1,26,2],[30,1,30,2],[31,1,31,2],[32,1,32,2],[33,1,33,2],[37,1,37,2],[38,1,38,2],[39,1,39,2],[40,1,40,2],[44,1,44,2],[45,1,45,2],[46,1,46,2],[47,1,47,2],[48,1,48,2],[51,1,51,2],[54,1,54,2],[57,1,57,2],[58,1,58,2],[59,1,59,2],[60,1,60,2],[61,1,61,2],[63,0,63,5],[65,1,65,2],[66,1,66,2],[71,0,71,5]]}
["Version 23b, ab 1.6.2023"]
["Antrag: Objektauszeichnung \"Label Schweizer Holz\""]
["Objekt"]
["Objektbezeichnung"]
["Adresse"]
["PLZ/Ort"]
["Kanton"]
["Realisierungsjahr"]
[null,"Objektbezeichnung und Ort werden so ins Zertifikat übernommen. "]
[]
["Antragsteller Objektauszeichnung"]
["Name/Firma/Organisation"]
["Kontaktperson"]
["Adresse"]
["PLZ/Ort"]
["Mail/Telefon"]
["Label-Mitglied / Reg.-Nr.","bitte auswählen","Lignum-xx-xxxx"]
[null,"Nur Labelmitglieder und Bauherrschaften können Objektauszeichnungen beantragen."]
[null,"Plakette und Zertifikat werden an den Antragsteller verschickt. "]
[null,"Gebühr für antragstellende Bauherrschaften ohne Label-Mitgliedschaft: CHF 600.--"]
[]
["Bauherrschaft"]
["Name/Firma/Organisation"]
["Kontaktperson"]
["Adresse"]
["PLZ/Ort"]
["Mail/Telefon"]
["Label-Mitglied / Reg.-Nr.","bitte auswählen","Lignum-xx-xxxx"]
[]
["Verantwortlich für die Holzbilanz"]
["Firma"]
["Kontaktperson"]
["PLZ/Ort"]
["Mail/Telefon"]
["Label-Mitglied / Reg.-Nr.","bitte auswählen","Lignum-xx-xxxx"]
[]
["Ausführendes Holzbauunternehmen"]
["Firma"]
["Kontaktperson"]
["PLZ/Ort"]
["Mail/Telefon"]
["Label-Mitglied / Reg.-Nr.","bitte auswählen","Lignum-xx-xxxx"]
[]
["Weitere Projektbeteiligte",null,null,"Label-Mitgliedschaft?"]
["Holzbauer, Schreiner, ",null,null,"bitte auswählen"]
["Holzbauingenieure, ",null,null,"bitte auswählen"]
["Architekturbüros und ",null,null,"bitte auswählen"]
["sonstige Unternehmen",null,null,"bitte auswählen"]
[{"$nulls":3},"bitte auswählen"]
[]
["Für das eingerechte Objekt beantragen wir eine Auszeichnung mit dem Label Schweizer Holz für:"]
[null,"bitte auswählen"]
[]
["Die Berechnung der Holzbilanz erfolgt nach:"]
[null,"bitte auswählen"]
[]
["Für das Objekt wünschen wir:"]
["Dokumenttyp (\"Zertifikat\")","bitte auswählen"]
["Datum auf Zertifikat",null,null," z.B. Datum der Übergabe"]
["Objekt-Plakette","bitte auswählen"]
["Eintrag holz-objekte.org","bitte auswählen",null," Kosten: CHF 50.-- exkl. MWST"]
["Kommunikation","bitte auswählen"]
[]
["Die unterzeichnende Person bestätigt die Richtigkeit und Vollständigkeit der oben gemachten Angaben. Sie nimmt zur Kenntnis, dass allfällige Kosten von der beantragenden Person/Firma getragen werden müssen, die durch Falschaussagen entstehen können."]
[]
["Ort und Datum"]
["Stempel/Unterschrift",{"$f":"IF(B12=\"\",\"\",B12)","v":""}]
[]
[]
[]
[]
["Dieser Antrag ist zusammen mit folgenden Dokumenten bei der Geschäftsstelle Marketing Schweizer Holz einzureichen."]
["o","Holzbilanz (unterschrieben/gescannt und im Excelformat)"]
["o",{"$f":"IF(B35=\"ja\",\"Labelnachweise der gelabelten Produkte (Formulare oder Rechnungen/Lieferscheine)\",\"Labelnachweise der gelabelten Produkte (Rechnungen/Lieferscheine)\")","v":"Labelnachweise der gelabelten Produkte (Rechnungen/Lieferscheine)"}]
["o","Pläne, Bilder oder Beschreibung des Objektes"]
["o","Bestätigung Zwischenproduktion Ausland (wenn erforderlich)"]

{"sheet":"Holzbilanz","index":2,"n_rows":112,"n_cols":11,"rows_kept":112,"merged":[[1,0,1,7],[7,3,8,7],[11,3,11,4],[14,3,14,4],[15,3,15,4],[16,3,16,4],[17,3,17,4],[18,3,18,4],[21,3,21,4],[22,3,22,4],[23,3,23,4],[24,3,24,4],[25,3,25,4],[28,3,28,4],[29,3,29,4],[30,3,30,4],[31,3,31,4],[32,3,32,4],[35,3,35,4],[36,3,36,4],[37,3,37,4],[38,3,38,4],[39,3,39,4],[42,3,42,4],[43,3,43,4],[44,3,44,4],[45,3,45,4],[46,3,46,4],[49,3,49,4],[50,3,50,4],[51,3,51,4],[54,3,54,4],[55,3,55,4],[56,3,56,4],[59,3,59,4],[60,3,60,4],[61,3,61,4],[64,3,64,4],[65,3,65,4],[66,3,66,4],[69,3,69,4],[70,3,70,4],[71,3,71,4],[74,3,74,4],[75,3,75,4],[76,3,76,4],[79,3,79,4],[80,3,80,4],[81,3,81,4],[84,3,84,4],[85,3,85,4],[86,3,86,4],[89,3,89,4],[90,3,90,4],[91,3,91,4],[94,3,94,4],[95,3,95,4],[96,3,96,4],[98,3,98,4],[98,5,98,6],[101,0,102,7],[104,1,104,2],[105,1,105,2]]}
["Version 23b, ab 1.6.2023"]
["Holzbilanz für die Objektauszeichnung \"Label Schweizer Holz\""]
["Objekt",{"$f":"IF(Antrag!B4=\"\",\"\",Antrag!B4)","v":""}]
["Bauherr",{"$f":"IF(Antrag!B23=\"\",\"\",Antrag!B23)","v":""}]
["Bilanz-Verantwortlich",{"$f":"IF(Antrag!B31=\"\",\"\",Antrag!B31)","v":""},null,"Hinweise zum Ein- und Ausblenden von Zellen:"]
["Kontaktpers.",{"$f":"IF(Antrag!B32=\"\",\"\",Antrag!B32)","v":""},null,"- Die Eingabefelder einzelner Bauteile können mit (+) oder (-) ein- und ausgeblendet werden."]
["Mail/Tel.",{"$f":"IF(Antrag!B34=\"\",\"\",Antrag!B34)","v":""},null,"- Vor dem Drucken oder PDF-generieren bitte nicht relevante Bauteile ausblenden."]
[{"$nulls":3},"- Bei Berechnungsmethode nach Volumen-Prozent, bitte Spalten E und F mit (-) ausblenden."]
["Labelvergabe für",{"$f":"IF(Antrag!B52=\"bitte auswählen\",\"\",Antrag!B52)","v":""}]
["Methode",{"$f":"IF(Antrag!B55=\"bitte auswählen\",\"\",Antrag!B55)","v":""}]
[]
["Bauteil","Produkte\n[z.B. BSH, Bauholz, OSB,…]","Menge\n[m³]","gelabeltes Schweizer Holz?\n[ja/nein]",null,"Spez. Gewicht\n[kg/m³]","Gewicht\n[to]","Hersteller/Lieferant/Reg.-Nr.\n[Firmenname/Ort/Lignum-xx-xxxx]","Beleg-\nNr.","Bemerkungen\nAuditor","Kontrolle\n[OK]"]
[]
["Dachkonstruktion",null,{"$f":"SUM(C15:C19)","v":{"v":0,"d":"0.00 m³"}},{"$f":"SUMIF(D15:D19,\"ja\",C15:C19)","v":{"v":0,"d":"0.00 m³"}},{"$f":"IF(C14=0,0,D14/C14)","v":{"v":0,"d":"0.0%"}},{"$f":"(C15*F15+C16*F16+C17*F17+C18*F18+C19*F19)/1000","v":0},{"$f":"IF(F14=0,0,(SUMIF(D15:D19,\"ja\",G15:G19))/(F14))","v":{"v":0,"d":"0.0%"}}]
[{"$nulls":3},"bitte wählen ",null,null,{"$f":"C15*F15/1000","v":{"v":0,"d":"0.0 t"}}]
[{"$nulls":3},"bitte wählen ",null,null,{"$f":"C16*F16/1000","v":{"v":0,"d":"0.0 t"}}]
[{"$nulls":3},"bitte wählen ",null,null,{"$f":"C17*F17/1000","v":{"v":0,"d":"0.0 t"}}]
[{"$nulls":3},"bitte wählen ",null,null,{"$f":"C18*F18/1000","v":{"v":0,"d":"0.0 t"}}]
[{"$nulls":3},"bitte wählen ",null,null,{"$f":"C19*F19/1000","v":{"v":0,"d":"0.0 t"}}]
[{"$nulls":6},{"$f":"SUM(G15:G19)","v":{"v":0,"d":"0.0"}}]
["Deckenkonstruktion",null,{"$f":"SUM(C22:C26)","v":{"v":0,"d":"0.00 m³"}},{"$f":"SUMIF(D22:D26,\"ja\",C22:C26)","v":{"v":0,"d":"0.00 m³"}},{"$f":"IF(C21=0,0,D21/C21)","v":{"v":0,"d":"0.0%"}},{"$f":"(C22*F22+C23*F23+C24*F24+C25*F25+C26*F26)/1000","v":0},{"$f":"IF(F21=0,0,(SUMIF(D22:D26,\"ja\",G22:G26))/(F21))","v":{"v":0,"d":"0.0%"}}]
[{"$nulls":3},"bitte wählen ",null,null,{"$f":"C22*F22/1000","v":{"v":0,"d":"0.0 t"}}]
[{"$nulls":3},"bitte wählen ",null,null,{"$f":"C23*F23/1000","v":{"v":0,"d":"0.0 t"}}]
[{"$nulls":3},"bitte wählen ",null,null,{"$f":"C24*F24/1000","v":{"v":0,"d":"0.0 t"}}]
[{"$nulls":3},"bitte wählen ",null,null,{"$f":"C25*F25/1000","v":{"v":0,"d":"0.0 t"}}]
[{"$nulls":3},"bitte wählen ",null,null,{"$f":"C26*F26/1000","v":{"v":0,"d":"0.0 t"}}]
[{"$nulls":6},{"$f":"SUM(G22:G26)","v":{"v":0,"d":"0.0"}}]
["Bodenkonstruktion",null,{"$f":"SUM(C29:C33)","v":{"v":0,"d":"0.00 m³"}},{"$f":"SUMIF(D29:D33,\"ja\",C29:C33)","v":{"v":0,"d":"0.00 m³"}},{"$f":"IF(C28=0,0,D28/C28)","v":{"v":0,"d":"0.0%"}},{"$f":"(C29*F29+C30*F30+C31*F31+C32*F32+C33*F33)/1000","v":0},{"$f":"IF(F28=0,0,(SUMIF(D29:D33,\"ja\",G29:G33))/(F28))","v":{"v":0,"d":"0.0%"}}]
[{"$nulls":3},"bitte wählen ",null,null,{"$f":"C29*F29/1000","v":{"v":0,"d":"0.0 t"}}]
[{"$nulls":3},"bitte wählen ",null,null,{"$f":"C30*F30/1000","v":{"v":0,"d":"0.0 t"}}]
[{"$nulls":3},"bitte wählen ",null,null,{"$f":"C31*F31/1000","v":{"v":0,"d":"0.0 t"}}]
[{"$nulls":3},"bitte wählen ",null,null,{"$f":"C32*F32/1000","v":{"v":0,"d":"0.0 t"}}]
[{"$nulls":3},"bitte wählen ",null,null,{"$f":"C33*F33/1000","v":{"v":0,"d":"0.0 t"}}]
[{"$nulls":6},{"$f":"SUM(G50:G52)","v":{"v":0,"d":"0.0"}}]
["Innenwandkonstruktionen",null,{"$f":"SUM(C36:C40)","v":{"v":0,"d":"0.00 m³"}},{"$f":"SUMIF(D36:D40,\"ja\",C36:C40)","v":{"v":0,"d":"0.00 m³"}},{"$f":"IF(C35=0,0,D35/C35)","v":{"v":0,"d":"0.0%"}},{"$f":"(C36*F36+C37*F37+C38*F38+C39*F39+C40*F40)/1000","v":0},{"$f":"IF(F35=0,0,(SUMIF(D36:D40,\"ja\",G36:G40))/(F35))","v":{"v":0,"d":"0.0%"}}]
[{"$nulls":3},"bitte wählen ",null,null,{"$f":"C36*F36/1000","v":{"v":0,"d":"0.0 t"}}]
[{"$nulls":3},"bitte wählen ",null,null,{"$f":"C37*F37/1000","v":{"v":0,"d":"0.0 t"}}]
[{"$nulls":3},"bitte wählen ",null,null,{"$f":"C38*F38/1000","v":{"v":0,"d":"0.0 t"}}]
[{"$nulls":3},"bitte wählen ",null,null,{"$f":"C39*F39/1000","v":{"v":0,"d":"0.0 t"}}]
[{"$nulls":3},"bitte wählen ",null,null,{"$f":"C40*F40/1000","v":{"v":0,"d":"0.0 t"}}]
[{"$nulls":6},{"$f":"SUM(G29:G33)","v":{"v":0,"d":"0.0"}}]
["Aussenwandkonstruktion",null,{"$f":"SUM(C43:C47)","v":{"v":0,"d":"0.00 m³"}},{"$f":"SUMIF(D43:D47,\"ja\",C43:C47)","v":{"v":0,"d":"0.00 m³"}},{"$f":"IF(C42=0,0,D42/C42)","v":{"v":0,"d":"0.0%"}},{"$f":"(C43*F43+C44*F44+C45*F45+C46*F46+C47*F47)/1000","v":0},{"$f":"IF(F42=0,0,(SUMIF(D43:D47,\"ja\",G43:G47))/(F42))","v":{"v":0,"d":"0.0%"}}]
[{"$nulls":3},"bitte wählen ",null,null,{"$f":"C43*F43/1000","v":{"v":0,"d":"0.0 t"}}]
[{"$nulls":3},"bitte wählen ",null,null,{"$f":"C44*F44/1000","v":{"v":0,"d":"0.0 t"}}]
[{"$nulls":3},"bitte wählen ",null,null,{"$f":"C45*F45/1000","v":{"v":0,"d":"0.0 t"}}]
[{"$nulls":3},"bitte wählen ",null,null,{"$f":"C46*F46/1000","v":{"v":0,"d":"0.0 t"}}]
[{"$nulls":3},"bitte wählen ",null,null,{"$f":"C47*F47/1000","v":{"v":0,"d":"0.0 t"}}]
[{"$nulls":6},{"$f":"SUM(G43:G47)","v":{"v":0,"d":"0.0"}}]
["Fassade",null,{"$f":"SUM(C50:C52)","v":{"v":0,"d":"0.00 m³"}},{"$f":"SUMIF(D50:D52,\"ja\",C50:C52)","v":{"v":0,"d":"0.00 m³"}},{"$f":"IF(C49=0,0,D49/C49)","v":{"v":0,"d":"0.0%"}},{"$f":"(C50*F50+C51*F51+C52*F52)/1000","v":0},{"$f":"IF(F49=0,0,(SUMIF(D50:D52,\"ja\",G50:G52))/(F49))","v":{"v":0,"d":"0.0%"}}]
[{"$nulls":3},"bitte wählen ",null,null,{"$f":"C50*F50/1000","v":{"v":0,"d":"0.0 t"}}]
[{"$nulls":3},"bitte wählen ",null,null,{"$f":"C51*F51/1000","v":{"v":0,"d":"0.0 t"}}]
[{"$nulls":3},"bitte wählen ",null,null,{"$f":"C52*F52/1000","v":{"v":0,"d":"0.0 t"}}]
[{"$nulls":6},{"$f":"SUM(G50:G52)","v":{"v":0,"d":"0.0"}}]
["Treppe(n)",null,{"$f":"SUM(C55:C57)","v":{"v":0,"d":"0.00 m³"}},{"$f":"SUMIF(D55:D57,\"ja\",C55:C57)","v":{"v":0,"d":"0.00 m³"}},{"$f":"IF(C54=0,0,D54/C54)","v":{"v":0,"d":"0.0%"}},{"$f":"(C55*F55+C56*F56+C57*F57)/1000","v":0},{"$f":"IF(F54=0,0,(SUMIF(D55:D57,\"ja\",G55:G57))/(F54))","v":{"v":0,"d":"0.0%"}}]
[{"$nulls":3},"bitte wählen ",null,null,{"$f":"C55*F55/1000","v":{"v":0,"d":"0.0 t"}}]
[{"$nulls":3},"bitte wählen ",null,null,{"$f":"C56*F56/1000","v":{"v":0,"d":"0.0 t"}}]
[{"$nulls":3},"bitte wählen ",null,null,{"$f":"C57*F57/1000","v":{"v":0,"d":"0.0 t"}}]
[{"$nulls":6},{"$f":"SUM(G55:G57)","v":{"v":0,"d":"0.0"}}]
["Fenster",null,{"$f":"SUM(C60:C62)","v":{"v":0,"d":"0.00 m³"}},{"$f":"SUMIF(D60:D62,\"ja\",C60:C62)","v":{"v":0,"d":"0.00 m³"}},{"$f":"IF(C59=0,0,D59/C59)","v":{"v":0,"d":"0.0%"}},{"$f":"(C60*F60+C61*F61+C62*F62)/1000","v":0},{"$f":"IF(F59=0,0,(SUMIF(D60:D62,\"ja\",G60:G62))/(F59))","v":{"v":0,"d":"0.0%"}}]
[{"$nulls":3},"bitte wählen ",null,null,{"$f":"C60*F60/1000","v":{"v":0,"d":"0.0 t"}}]
[{"$nulls":3},"bitte wählen ",null,null,{"$f":"C61*F61/1000","v":{"v":0,"d":"0.0 t"}}]
[{"$nulls":3},"bitte wählen ",null,null,{"$f":"C62*F62/1000","v":{"v":0,"d":"0.0 t"}}]
[{"$nulls":6},{"$f":"SUM(G55:G57)","v":{"v":0,"d":"0.0"}}]
["Innen-/Aussentüren",null,{"$f":"SUM(C65:C67)","v":{"v":0,"d":"0.00 m³"}},{"$f":"SUMIF(D65:D67,\"ja\",C65:C67)","v":{"v":0,"d":"0.00 m³"}},{"$f":"IF(C64=0,0,D64/C64)","v":{"v":0,"d":"0.0%"}},{"$f":"(C65*F65+C66*F66+C67*F67)/1000","v":0},{"$f":"IF(F64=0,0,(SUMIF(D65:D67,\"ja\",G65:G67))/(F64))","v":{"v":0,"d":"0.0%"}}]
[{"$nulls":3},"bitte wählen ",null,null,{"$f":"C65*F65/1000","v":{"v":0,"d":"0.0 t"}}]
[{"$nulls":3},"bitte wählen ",null,null,{"$f":"C66*F66/1000","v":{"v":0,"d":"0.0 t"}}]
[{"$nulls":3},"bitte wählen ",null,null,{"$f":"C67*F67/1000","v":{"v":0,"d":"0.0 t"}}]
[{"$nulls":6},{"$f":"SUM(G60:G62)","v":{"v":0,"d":"0.0"}}]
["Parkett/Bodenbeläge",null,{"$f":"SUM(C70:C72)","v":{"v":0,"d":"0.00 m³"}},{"$f":"SUMIF(D70:D72,\"ja\",C70:C72)","v":{"v":0,"d":"0.00 m³"}},{"$f":"IF(C69=0,0,D69/C69)","v":{"v":0,"d":"0.0%"}},{"$f":"(C70*F70+C71*F71+C72*F72)/1000","v":0},{"$f":"IF(F69=0,0,(SUMIF(D70:D72,\"ja\",G70:G72))/(F69))","v":{"v":0,"d":"0.0%"}}]
[{"$nulls":3},"bitte wählen ",null,null,{"$f":"C70*F70/1000","v":{"v":0,"d":"0.0 t"}}]
[{"$nulls":3},"bitte wählen ",null,null,{"$f":"C71*F71/1000","v":{"v":0,"d":"0.0 t"}}]
[{"$nulls":3},"bitte wählen ",null,null,{"$f":"C72*F72/1000","v":{"v":0,"d":"0.0 t"}}]
[{"$nulls":6},{"$f":"SUM(G65:G67)","v":{"v":0,"d":"0.0"}}]
["Küche(n)",null,{"$f":"SUM(C75:C77)","v":{"v":0,"d":"0.00 m³"}},{"$f":"SUMIF(D75:D77,\"ja\",C75:C77)","v":{"v":0,"d":"0.00 m³"}},{"$f":"IF(C74=0,0,D74/C74)","v":{"v":0,"d":"0.0%"}},{"$f":"(C75*F75+C76*F76+C77*F77)/1000","v":0},{"$f":"IF(F74=0,0,(SUMIF(D75:D77,\"ja\",G75:G77))/(F74))","v":{"v":0,"d":"0.0%"}}]
[{"$nulls":3},"bitte wählen ",null,null,{"$f":"C75*F75/1000","v":{"v":0,"d":"0.0 t"}}]
[{"$nulls":3},"bitte wählen ",null,null,{"$f":"C76*F76/1000","v":{"v":0,"d":"0.0 t"}}]
[{"$nulls":3},"bitte wählen ",null,null,{"$f":"C77*F77/1000","v":{"v":0,"d":"0.0 t"}}]
[{"$nulls":6},{"$f":"SUM(G75:G77)","v":{"v":0,"d":"0.0"}}]
["Einbauschränke",null,{"$f":"SUM(C80:C82)","v":{"v":0,"d":"0.00 m³"}},{"$f":"SUMIF(D80:D82,\"ja\",C80:C82)","v":{"v":0,"d":"0.00 m³"}},{"$f":"IF(C79=0,0,D79/C79)","v":{"v":0,"d":"0.0%"}},{"$f":"(C80*F80+C81*F81+C82*F82)/1000","v":0},{"$f":"IF(F79=0,0,(SUMIF(D80:D82,\"ja\",G80:G82))/(F79))","v":{"v":0,"d":"0.0%"}}]
[{"$nulls":3},"bitte wählen ",null,null,{"$f":"C80*F80/1000","v":{"v":0,"d":"0.0 t"}}]
[{"$nulls":3},"bitte wählen ",null,null,{"$f":"C81*F81/1000","v":{"v":0,"d":"0.0 t"}}]
[{"$nulls":3},"bitte wählen ",null,null,{"$f":"C82*F82/1000","v":{"v":0,"d":"0.0 t"}}]
[{"$nulls":6},{"$f":"SUM(G80:G82)","v":{"v":0,"d":"0.0"}}]
["sonstige:",null,{"$f":"SUM(C85:C87)","v":{"v":0,"d":"0.00 m³"}},{"$f":"SUMIF(D85:D87,\"ja\",C85:C87)","v":{"v":0,"d":"0.00 m³"}},{"$f":"IF(C84=0,0,D84/C84)","v":{"v":0,"d":"0.0%"}},{"$f":"(C85*F85+C86*F86+C87*F87)/1000","v":0},{"$f":"IF(F84=0,0,(SUMIF(D85:D87,\"ja\",G85:G87))/(F84))","v":{"v":0,"d":"0.0%"}}]
[{"$nulls":3},"bitte wählen ",null,null,{"$f":"C85*F85/1000","v":{"v":0,"d":"0.0 t"}}]
[{"$nulls":3},"bitte wählen ",null,null,{"$f":"C86*F86/1000","v":{"v":0,"d":"0.0 t"}}]
[{"$nulls":3},"bitte wählen ",null,null,{"$f":"C87*F87/1000","v":{"v":0,"d":"0.0 t"}}]
[{"$nulls":6},{"$f":"SUM(G85:G87)","v":{"v":0,"d":"0.0"}}]
["sonstige:",null,{"$f":"SUM(C90:C92)","v":{"v":0,"d":"0.00 m³"}},{"$f":"SUMIF(D90:D92,\"ja\",C90:C92)","v":{"v":0,"d":"0.00 m³"}},{"$f":"IF(C89=0,0,D89/C89)","v":{"v":0,"d":"0.0%"}},{"$f":"(C90*F90+C91*F91+C92*F92)/1000","v":0},{"$f":"IF(F89=0,0,(SUMIF(D90:D92,\"ja\",G90:G92))/(F89))","v":{"v":0,"d":"0.0%"}}]
[{"$nulls":3},"bitte wählen ",null,null,{"$f":"C90*F90/1000","v":{"v":0,"d":"0.0 t"}}]
[{"$nulls":3},"bitte wählen ",null,null,{"$f":"C91*F91/1000","v":{"v":0,"d":"0.0 t"}}]
[{"$nulls":3},"bitte wählen ",null,null,{"$f":"C92*F92/1000","v":{"v":0,"d":"0.0 t"}}]
[{"$nulls":6},{"$f":"SUM(G90:G92)","v":{"v":0,"d":"0.0"}}]
["Dämmung (fakultativ - siehe Anleitung)",null,{"$f":"SUM(C95:C97)","v":{"v":0,"d":"0.00 m³"}},{"$f":"SUMIF(D95:D97,\"ja\",C95:C97)","v":{"v":0,"d":"0.00 m³"}},{"$f":"IF(C94=0,0,D94/C94)","v":{"v":0,"d":"0.0%"}},{"$f":"(C95*F95+C96*F96+C97*F97)/1000","v":0},{"$f":"IF(F94=0,0,(SUMIF(D95:D97,\"ja\",G95:G97))/(F94))","v":{"v":0,"d":"0.0%"}}]
[{"$nulls":3},"bitte wählen ",null,null,{"$f":"C95*F95/1000","v":{"v":0,"d":"0.0 t"}}]
[{"$nulls":3},"bitte wählen ",null,null,{"$f":"C96*F96/1000","v":{"v":0,"d":"0.0 t"}}]
[{"$nulls":3},"bitte wählen ",null,null,{"$f":"C97*F97/1000","v":{"v":0,"d":"0.0 t"}}]
[]
[null,null,"Holz verbaut","gelabeltes CH-Holz",null,"in Tonnen"]
["TOTAL OBJEKT",null,{"$f":"C94+C89+C84+C79+C74+C69+C64+C59+C54+C49+C42+C35+C28+C21+C14","v":{"v":0,"d":"0.00 m³"}},{"$f":"D94+D89+D84+D79+D74+D69+D64+D59+D54+D49+D42+D35+D28+D21+D14","v":{"v":0,"d":"0.00 m³"}},{"$f":"IF(C100=0,0,(C14*E14+C21*E21+C28*E28+C35*E35+C42*E42+C49*E49+C54*E54+C59*E59+C64*E64+C69*E69+C74*E74+C79*E79+C84*E84+C89*E89+C94*E94)/C100)","v":{"v":0,"d":"0.0%"}},{"$f":"F94+F89+F84+F79+F74+F69+F64+F59+F54+F49+F42+F35+F28+F21+F14","v":{"v":0,"d":"0.00 t"}},{"$f":"IF(F100=0,0,(F94*G94+F89*G89+F84*G84+F79*G79+F74*G74+F69*G69+F64*G64+F59*G59+F54*G54+F49*G49+F42*G42+F35*G35+F28*G28+F21*G21+F14*G14)/F100)","v":{"v":0,"d":"0.0%"}},null,null,"Bilanz kontrolliert durch:"]
[]
["Die unterzeichnende Person bestätigt die Richtigkeit und Vollständigkeit der oben gemachten Angaben. Sie nimmt zur Kenntnis, dass allfällige Kosten von der beantragenden Person/Firma getragen werden müssen, die durch Falschaussagen entstehen können."]
[{"$nulls":9},"Name","Datum"]
[]
["Ort und Datum",{"$nulls":4},"Wenn das spez. Gewicht eines Baustoffes nicht bekannt ist,"]
["Stempel/Unterschrift",{"$f":"IF(Antrag!B31=\"\",\"\",Antrag!B31)","v":""},{"$nulls":3},"kann mit folgenden Richtwerten gerechnet werden:"]
[]
[{"$nulls":5},{"v":460,"d":"460 kg/m³"},"Fichte/Tanne/Kiefer"]
[{"$nulls":5},{"v":580,"d":"580 kg/m³"},"Lärche"]
[{"$nulls":5},{"v":680,"d":"680 kg/m³"},"Buche/Eiche/Esche"]
[{"$nulls":5},{"v":660,"d":"660 kg/m³"},"Spanplatte/MDF/OSB"]
[{"$nulls":5},{"v":140,"d":"140 kg/m³"},"Holzfaserdämmplatte"]